bitfinex-derivatives/quotes_SOLF0:USTF0_20250509
["timestamp","ask_amount","ask_price","bid_price","bid_amount"]
[1746799417105,42.68,171.99,171.86,85.12]
[1746799417505,5.8172,171.92,171.86,85.12]
[1746799417708,42.68,171.99,171.86,85.12]
[1746799418302,42.68,171.99,171.87,1.8687]
[1746799418502,5.8156,171.96,171.9,5.8174]
[1746799418908,42.68,171.99,171.87,1.8687]
[1746799419103,5.8161,171.95,171.89,5.8179]
[1746799419310,70.219435,172.0,171.87,1.8687]
[1746799419609,70.219435,172.0,171.88,1.9765]
[1746799420208,5.8162,171.95,171.89,5.8176]
[1746799420609,70.219435,172.0,171.88,63.9765]
[1746799420811,27.639435,171.96,171.86,85.12]
[1746799421209,27.639435,171.96,171.86,42.56]
[1746799421914,27.639435,171.96,171.87,5.8183]
[1746799422209,27.639435,171.96,171.86,42.56]
[1746799422411,5.8165,171.94,171.89,5.8176]
[1746799422611,43.74279069,172.0,171.86,42.56]
[1746799423512,49.55699069,172.0,171.95,5.8156]
[1746799423705,43.74279069,172.0,171.9,42.18]
[1746799424010,5.8147,171.99,171.94,5.816]
[1746799424210,1.16279069,172.0,171.86,42.56]
[1746799424411,1.16279069,172.0,171.87,42.02]
[1746799425415,85.66279069,172.0,171.87,42.02]
[1746799425616,5.8161,171.95,171.86,42.56]
[1746799425812,85.66279069,172.0,171.87,41.9]
[1746799426216,5.8157,171.96,171.87,41.9]
[1746799426415,85.66279069,172.0,171.86,84.38]
[1746799426814,5.8168,171.93,171.89,5.8178]
[1746799427114,5.8168,171.93,171.86,42.54]
[1746799427511,5.8163,171.94,171.86,42.54]
[1746799428012,27.639435,171.97,171.9,5.8173]
[1746799428217,27.639435,171.97,171.86,42.54]
[1746799428712,27.639435,171.97,171.87,5.8184]
[1746799428919,1.1713,171.96,171.87,5.8184]
[1746799429217,27.639435,171.93,171.86,5.8188]
[1746799429409,69.199435,171.93,171.86,5.8188]
[1746799429818,5.8179,171.89,171.86,5.8188]
[1746799430017,69.199435,171.93,171.82,3.7939]
[1746799430217,42.68279069,172.0,171.82,3.7939]
[1746799430619,42.68279069,172.0,171.83,27.639435]
[1746799430815,48.49719069,172.0,171.84,11.6391]
[1746799431117,42.68279069,172.0,171.95,5.8157]
[1746799431523,27.61499091,171.96,171.64,53.36604098]
[1746799431708,27.61499091,171.96,171.77,1.905]
[1746799431709,43.70312881,171.95,171.77,1.905]
[1746799432017,1.16312881,171.95,171.78,87.6647]
[1746799432318,42.46312881,171.95,171.79,460.8]
[1746799432513,5.8175,171.91,171.84,5.8193]
[1746799432821,42.46312881,171.95,171.79,460.8]
[1746799433013,42.46312881,171.95,171.87,5.8183]
[1746799433609,42.46312881,171.95,171.79,460.8]
[1746799434513,5.8173,171.91,171.79,460.8]
[1746799434919,42.46312881,171.95,171.79,460.8]
[1746799435119,5.817,171.92,171.79,460.8]
[1746799435923,5.817,171.92,171.87,5.8184]
[1746799436317,5.8173,171.91,171.87,5.8184]
[1746799436826,5.817,171.92,171.88,5.8182]
[1746799437018,1.16312881,171.95,171.84,82.08]
[1746799437320,1.16312881,171.95,171.85,40.82]
[1746799437722,5.8165,171.94,171.86,3.8475]
[1746799437918,1.16312881,171.95,171.87,1.8463]
[1746799438323,5.8165,171.94,171.87,1.8463]
[1746799438522,1.16312881,171.95,171.87,1.8463]
[1746799439023,1.16312881,171.95,171.89,5.8178]
[1746799439323,5.817,171.92,171.87,1.8463]
[1746799439512,1.16312881,171.95,171.88,5.8182]
[1746799439717,1.16312881,171.95,171.87,1.8463]
[1746799440622,27.61937819,171.94,171.86,3.8475]
[1746799440821,27.61937819,171.94,171.86,1.9481]
[1746799441022,1.16312881,171.95,171.87,5.8185]
[1746799441222,1.16312881,171.95,171.86,1.9481]
[1746799441618,5.8174,171.91,171.86,7.7667]
[1746799441825,27.61937819,171.93,171.86,5.8186]
[1746799442221,5.8178,171.9,171.86,5.8186]
[1746799442424,27.61937819,171.93,171.81,1.8674]
[1746799442630,386.99137819,171.93,171.81,1.8674]
[1746799442925,386.99137819,171.93,171.82,5.8202]
[1746799443123,27.61937819,171.89,171.79,41.24]
[1746799443317,5.8199,171.84,171.79,41.24]
[1746799443517,27.61937819,171.89,171.73,45.0803]
[1746799443518,81.7,171.88,171.73,45.0803]
[1746799443935,27.61937819,171.89,171.73,45.0803]
[1746799443936,40.44,171.87,171.73,45.0803]
[1746799444127,40.44,171.87,171.81,5.8203]
[1746799444426,5.8198,171.84,171.73,45.0803]
[1746799444622,40.44,171.87,171.81,5.8204]
[1746799445019,5.819,171.86,171.82,5.8202]
[1746799445229,5.819,171.86,171.73,45.0803]
[1746799445230,40.44,171.87,171.73,45.0803]
[1746799445626,5.819,171.86,171.73,45.0803]
[1746799445827,40.44,171.87,171.73,45.0803]
[1746799446227,27.61937819,171.86,171.73,45.0803]
[1746799446626,5.8198,171.84,171.73,45.0803]
[1746799446823,41.26,171.83,171.73,3.8403]
[1746799447030,27.61937819,171.82,171.73,1.8674]
[1746799447223,27.61937819,171.82,171.68,41.26]
[1746799447224,40.2,171.81,171.68,41.26]
[1746799447527,43.3605,171.85,171.69,1.8903]
[1746799447928,5.82,171.83,171.69,1.8903]
[1746799448225,43.3605,171.85,171.69,1.8903]
[1746799448427,27.61937819,171.82,171.7,40.16]
[1746799449227,27.61937819,171.78,171.69,1.8903]
[1746799449423,5.8232,171.74,171.69,7.7149]
[1746799449628,5.8232,171.74,171.69,1.8903]
[1746799449929,40.14,171.77,171.69,1.8903]
[1746799450129,40.14,171.77,171.68,41.26]
[1746799450635,40.14,171.77,171.73,5.8233]
[1746799451322,39.96,171.8,171.65,3.7688]
[1746799451523,39.96,171.8,171.66,39.96]
[1746799451732,27.61937819,171.77,171.71,5.8238]
[1746799451926,27.61937819,171.77,171.66,39.96]
[1746799452134,41.8911,171.76,171.66,39.96]
[1746799452429,41.8911,171.76,171.69,5.8247]
[1746799452626,43.0662,171.76,171.63,460.84]
[1746799452832,5.8244,171.7,171.61,43.7375]
[1746799453028,39.92,171.72,171.61,43.7375]
[1746799453327,27.61937819,171.69,171.6,6.8275]
[1746799453535,41.1375,171.68,171.6,1.0]
[1746799453831,5.8258,171.66,171.62,5.8269]
[1746799454032,39.9,171.66,171.6,1.0]
[1746799454927,39.86,171.69,171.6,1.0]
[1746799455530,5.824,171.72,171.67,5.825]
[1746799455734,79.82,171.74,171.6,1.0]
[1746799456128,27.61937819,171.77,171.6,1.0]
[1746799456333,107.41937819,171.77,171.6,1.0]
[1746799457032,69.28177819,171.82,171.61,27.61937819]
[1746799457233,5.8217,171.78,171.73,5.8231]
[1746799457436,69.28177819,171.82,171.68,39.98]
[1746799457630,27.61937819,171.78,171.68,39.98]
[1746799457933,67.59937819,171.77,171.68,39.98]
[1746799458127,39.8,171.76,171.63,41.986]
[1746799458326,5.8231,171.74,171.69,5.8244]
[1746799458525,27.61937819,171.73,171.63,41.986]
[1746799458832,5.825,171.69,171.63,41.986]
[1746799459032,39.7,171.69,171.59,39.76]
[1746799459235,67.31937819,171.69,171.59,39.76]
[1746799459927,67.31937819,171.69,171.6,6.8277]
[1746799460434,5.8259,171.66,171.61,5.8274]
[1746799460628,67.31937819,171.69,171.6,1.0]
[1746799461635,67.31937819,171.69,171.47,157.65688267]
[1746799461636,27.71961323,171.62,171.47,157.65688267]
[1746799461835,541.92543324,171.61,171.47,157.65688267]
[1746799462027,1.16550116,171.6,171.47,157.65688267]
[1746799462233,39.5,171.59,171.47,157.65688267]
[1746799462539,27.75383383,171.56,171.47,157.65688267]
[1746799462939,27.75781498,171.55,171.47,157.65688267]
[1746799463141,27.7717877,171.5,171.47,157.65688267]
[1746799463342,39.78,171.5,171.47,157.65688267]
[1746799464335,39.88,171.55,171.47,157.65688267]
[1746799464538,5.8298,171.54,171.47,157.65688267]
[1746799464839,39.88,171.55,171.47,157.65688267]
[1746799465039,5.8305,171.52,171.47,157.65688267]
[1746799465239,27.75748595,171.52,171.47,157.65688267]
[1746799465840,1.16550116,171.6,171.47,157.65688267]
[1746799466240,1.16550116,171.6,171.48,41.8248]
[1746799466438,1.16550116,171.6,171.49,40.02]
[1746799466638,1.16550116,171.6,171.5,3.8165]
[1746799466838,1.16550116,171.6,171.5,43.6765]
[1746799467045,1.16550116,171.6,171.5,3.8165]
[1746799468135,28.92298711,171.6,171.5,3.8165]
[1746799468341,40.02,171.59,171.47,157.65688267]
[1746799468537,27.75748595,171.54,171.47,157.65688267]
[1746799469341,27.75748595,171.5,171.47,157.65688267]
[1746799469647,5.8318,171.48,171.47,157.65688267]
[1746799470341,40.74,171.49,171.47,157.65688267]
[1746799471244,40.02,171.53,171.47,157.65688267]
[1746799471437,27.75748595,171.63,171.48,5.8317]
[1746799471438,465.75748595,171.57,171.48,5.8317]
[1746799471638,81.0,171.57,171.47,157.65688267]
[1746799471848,357.0,171.62,171.48,1.8822]
[1746799472042,357.0,171.62,171.48,42.9622]
[1746799472043,82.16550116,171.6,171.48,42.9622]
[1746799472450,5.8284,171.59,171.54,5.8297]
[1746799472750,82.16550116,171.6,171.5,1.0]
[1746799473346,82.16550116,171.6,171.51,3.7427]
[1746799473549,5.8291,171.57,171.51,9.5735]
[1746799473749,82.16550116,171.6,171.51,3.7427]
[1746799473945,27.75748595,171.59,171.51,3.7427]
[1746799474449,82.16550116,171.6,171.51,3.7427]
[1746799474644,5.8287,171.58,171.51,3.7427]
[1746799474851,82.16550116,171.6,171.51,3.7427]
[1746799475348,27.75748595,171.56,171.5,1.0]
[1746799475651,109.92298711,171.6,171.5,1.0]
[1746799475846,5.8294,171.56,171.5,6.8309]
[1746799476050,109.92298711,171.6,171.5,1.0]
[1746799476350,82.16550116,171.6,171.5,1.0]
[1746799476549,1.16550116,171.6,171.5,1.0]
[1746799476853,5.8289,171.57,171.51,5.8307]
[1746799477150,1.16550116,171.6,171.51,5.8307]
[1746799477349,5.8288,171.57,171.52,5.8304]
[1746799477551,1.16550116,171.6,171.5,42.34]
[1746799478652,6.99330116,171.6,171.5,42.34]
[1746799478847,1.16550116,171.6,171.5,42.34]
[1746799479044,489.43748595,171.66,171.5,42.34]
[1746799479248,82.56,171.67,171.5,42.34]
[1746799479551,82.56,171.67,171.59,5.828]
[1746799479951,82.56,171.67,171.56,82.5]
[1746799480155,5.8261,171.65,171.6,5.8275]
[1746799480450,82.56,171.67,171.57,3.9595]
[1746799480652,5.8268,171.63,171.59,5.8278]
[1746799480854,82.56,171.67,171.57,3.9595]
[1746799481849,5.8261,171.65,171.6,5.8275]
[1746799482056,27.75748595,171.69,171.57,3.9595]
[1746799482355,5.824,171.72,171.57,3.9595]
[1746799482550,27.75748595,171.75,171.57,3.9595]
[1746799482849,5.8261,171.65,171.57,3.9595]
[1746799483049,27.75748595,171.71,171.58,82.12]
[1746799483455,27.75748595,171.73,171.64,5.8263]
[1746799483656,27.75748595,171.73,171.58,82.12]
[1746799483855,27.75748595,171.73,171.57,3.9595]
[1746799484157,27.75748595,171.73,171.58,82.22]
[1746799484358,27.75748595,171.73,171.58,84.2211]
[1746799484559,5.8256,171.67,171.62,5.8269]
[1746799484957,27.75748595,171.73,171.62,5.8269]
[1746799485152,5.8256,171.67,171.62,5.8269]
[1746799485356,5.8256,171.67,171.63,5.8267]
[1746799485760,27.75748595,171.73,171.62,5.827]
[1746799485960,357.0,171.77,171.58,84.2211]
[1746799486262,5.8229,171.75,171.6,27.75748595]
[1746799486457,357.0,171.77,171.61,461.6]
[1746799487562,5.8224,171.76,171.61,461.6]
[1746799487758,357.0,171.77,171.61,461.6]
[1746799488163,5.8231,171.74,171.68,5.8248]
[1746799488366,41.32,171.79,171.67,81.94]
[1746799488554,41.32,171.79,171.68,5.804]
[1746799489761,5.8221,171.77,171.68,5.804]
[1746799490262,5.822,171.77,171.72,5.8235]
[1746799490460,41.32,171.79,171.72,5.8235]
[1746799490660,41.32,171.79,171.68,5.804]
[1746799491359,27.6929788,171.75,171.52,461.42]
[1746799491560,27.70344859,171.68,171.55,1.8153]
[1746799491764,27.70344859,171.64,171.53,1.8763]
[1746799491959,438.6,171.67,171.51,43.2127]
[1746799491960,27.70344859,171.6,171.51,43.2127]
[1746799492358,5.829,171.57,171.52,5.8302]
[1746799492553,5.829,171.57,171.51,43.2127]
[1746799492761,27.70344859,171.6,171.51,43.2127]
[1746799493365,33.53124859,171.6,171.56,5.829]
[1746799493558,33.53124859,171.6,171.51,43.2127]
[1746799494265,33.53124859,171.6,171.55,5.8292]
[1746799494760,5.8274,171.62,171.53,39.94]
[1746799494965,27.70344859,171.64,171.53,39.94]
[1746799495767,5.8274,171.61,171.56,5.829]
[1746799495965,5.8274,171.61,171.53,39.94]
[1746799496360,5.8274,171.61,171.56,5.8289]
[1746799496564,5.8274,171.61,171.53,39.94]
[1746799496764,68.80524859,171.66,171.53,39.94]
[1746799497258,68.80524859,171.66,171.51,43.2127]
[1746799497464,68.80524859,171.66,171.51,82.9327]
[1746799497764,5.8271,171.62,171.51,82.9327]
[1746799498065,67.64344859,171.66,171.51,82.9327]
[1746799498868,5.8261,171.65,171.51,82.9327]
[1746799499166,39.94,171.66,171.52,62.0]
[1746799499662,27.70344859,171.7,171.52,62.0]
[1746799499866,5.8259,171.66,171.52,62.0]
[1746799500065,27.70344859,171.7,171.62,5.8268]
[1746799500264,27.70344859,171.7,171.59,39.92]
[1746799500567,27.70344859,171.7,171.58,79.78]
[1746799501070,27.70344859,171.7,171.59,5.828]
[1746799501269,39.82,171.71,171.58,39.92]
[1746799501566,5.8281,171.59,171.58,39.92]
[1746799501761,27.70344859,171.6,171.52,1.8114]
[1746799502570,5.8285,171.58,171.53,5.8299]
[1746799502771,27.70344859,171.6,171.52,1.8114]
[1746799503065,27.70344859,171.6,171.54,5.8298]
[1746799503268,27.70344859,171.6,171.52,1.8114]
[1746799503669,5.8282,171.59,171.54,5.8295]
[1746799503863,27.70344859,171.6,171.51,41.8327]
[1746799504063,27.70344859,171.6,171.51,39.92]
[1746799504265,1.1644,171.63,171.5,1.0]
[1746799504266,27.70344859,171.56,171.5,1.0]
[1746799504667,27.70344859,171.6,171.5,1.0]
[1746799504867,5.8282,171.59,171.54,5.8295]
[1746799505067,27.70344859,171.6,171.5,1.0]
[1746799505972,5.8292,171.56,171.5,6.831]
[1746799506166,39.56,171.61,171.5,1.0]
[1746799506366,5.8295,171.55,171.5,6.831]
[1746799506766,5.8295,171.55,171.5,1.0]
[1746799507071,5.8295,171.55,171.51,5.8307]
[1746799507467,67.26344859,171.61,171.5,1.0]
[1746799507672,528.62344859,171.63,171.5,1.0]
[1746799507869,27.70344859,171.63,171.5,1.0]
[1746799508071,5.8273,171.62,171.58,5.8284]
[1746799508271,5.8273,171.62,171.55,39.94]
[1746799508572,39.36,171.66,171.55,39.94]
[1746799508875,39.36,171.66,171.56,5.829]
[1746799509070,39.36,171.66,171.55,43.8859]
[1746799509267,5.8275,171.61,171.57,5.8286]
[1746799509470,39.36,171.66,171.55,43.8859]
[1746799510181,27.70344859,171.63,171.5,1.0]
[1746799510380,27.70344859,171.63,171.51,3.6845]
[1746799510982,5.8295,171.55,171.51,7.6901]
[1746799511182,5.8295,171.55,171.51,1.8595]
[1746799511383,5.8298,171.55,171.51,7.6902]
[1746799511577,27.70344859,171.59,171.51,7.6902]
[1746799511777,27.70344859,171.59,171.5,1.0]
[1746799511977,27.70344859,171.55,171.5,1.0]
[1746799512479,5.8305,171.52,171.5,1.0]
[1746799512976,396.24,171.6,171.5,1.0]
[1746799513182,27.70344859,171.56,171.5,1.0]
[1746799513877,39.94,171.55,171.5,1.0]
[1746799514088,27.70344859,171.52,171.5,1.0]
[1746799514279,27.70344859,171.52,171.47,157.65688267]
[1746799514976,5.8318,171.48,171.47,157.65688267]
[1746799515374,5.8318,171.48,171.47,156.48838267]
[1746799515885,5.8316,171.49,171.47,156.48838267]
[1746799516180,5.8309,171.51,171.48,5.8318]
[1746799516386,39.1,171.54,171.47,156.48838267]
[1746799516786,5.8318,171.48,171.47,156.48838267]
[1746799517277,39.1,171.54,171.47,156.48838267]
[1746799518182,27.70344859,171.52,171.47,156.48838267]
[1746799518377,5.8318,171.48,171.47,156.48838267]
[1746799518687,44.6318,171.48,171.47,1e-08]
[1746799518876,66.50344859,171.48,171.43,1.0]
[1746799519080,66.50344859,171.48,171.38,43.6169]
[1746799519287,66.50344859,171.48,171.38,3.6769]
[1746799519483,5.8341,171.42,171.38,9.512]
[1746799520181,5.8341,171.42,171.38,3.6769]
[1746799520588,5.8341,171.42,171.38,9.512]
[1746799520786,5.8336,171.43,171.38,9.512]
[1746799520983,38.8,171.48,171.38,3.6769]
[1746799521179,27.70344859,171.47,171.41,5.834]
[1746799521487,27.79769652,171.42,171.21,38.66]
[1746799521684,27.79769652,171.32,171.2,3.8487]
[1746799521985,38.6,171.31,171.2,3.8487]
[1746799522186,38.6,171.31,171.23,5.8402]
[1746799522488,38.6,171.31,171.2,3.8487]
[1746799522783,38.6,171.31,171.2,9.6898]
[1746799522989,38.6,171.31,171.2,3.8487]
[1746799523290,38.6,171.31,171.21,5.8409]
[1746799523590,66.39769652,171.31,171.2,3.8487]
[1746799523987,5.8393,171.27,171.2,3.8487]
[1746799524388,5.8384,171.29,171.2,3.8487]
[1746799524589,66.39769652,171.31,171.2,3.8487]
[1746799524590,38.6,171.31,171.2,3.8487]
[1746799524980,38.66,171.32,171.2,3.8487]
[1746799525186,66.35769652,171.36,171.2,3.8487]
[1746799525393,67.52483004,171.36,171.2,3.8487]
[1746799526094,27.79769652,171.32,171.2,3.8487]
[1746799526591,5.8383,171.29,171.24,5.8399]
[1746799526792,27.79769652,171.32,171.2,3.8487]
[1746799527390,27.79769652,171.28,171.12,38.68]
[1746799527595,5.842,171.19,171.1,3.8552]
[1746799527790,38.68,171.22,171.1,3.8552]
[1746799528693,38.68,171.22,171.15,5.8428]
[1746799528887,38.68,171.22,171.1,3.8552]
[1746799529290,5.8417,171.2,171.1,3.8552]
[1746799529490,38.68,171.22,171.1,3.8552]
[1746799529691,5.8417,171.2,171.1,3.8552]
[1746799529884,38.94,171.2,171.1,3.8552]
[1746799530294,27.79769652,171.18,171.08,1.8601]
[1746799530495,27.79769652,171.18,171.05,77.64]
[1746799530697,5.8427,171.17,171.11,5.8442]
[1746799530896,66.73769652,171.2,171.06,38.92]
[1746799531188,27.79769652,171.2,171.06,38.92]
[1746799531696,66.65769652,171.26,171.06,66.71769652]
[1746799531991,1.16788321,171.25,171.06,66.71769652]
[1746799532196,1.16788321,171.25,171.1,27.79769652]
[1746799532396,1.16788321,171.25,171.11,502.9693]
[1746799532595,1.16788321,171.25,171.12,38.82]
[1746799532797,1.16788321,171.25,171.12,40.68]
[1746799532998,1.16788321,171.25,171.13,1.9511]
[1746799533497,1.16788321,171.25,171.14,27.79769652]
[1746799533700,27.79769652,171.3,171.13,1.9511]
[1746799533899,27.79769652,171.3,171.15,77.46]
[1746799534101,624.27142739,171.32,171.15,77.46]
[1746799534397,981.27142739,171.32,171.15,77.46]
[1746799534596,5.8394,171.26,171.21,5.8407]
[1746799534797,5.8394,171.26,171.15,77.46]
[1746799535095,27.79769652,171.29,171.15,77.46]
[1746799535301,27.79769652,171.29,171.15,38.72]
[1746799536099,5.8404,171.23,171.15,38.72]
[1746799536301,27.79769652,171.25,171.13,1.9511]
[1746799537202,27.79769652,171.27,171.13,1.9511]
[1746799538000,38.9,171.28,171.13,1.9511]
[1746799538199,27.79769652,171.26,171.13,1.9511]
[1746799539398,397.06767865,171.28,171.13,1.9511]
[1746799539601,38.94,171.27,171.13,1.9511]
[1746799539803,27.79769652,171.26,171.13,1.9511]
[1746799540602,5.8406,171.23,171.13,1.9511]
[1746799540903,38.94,171.27,171.13,1.9511]
[1746799541299,44.7793,171.27,171.13,1.9511]
[1746799541501,38.94,171.27,171.13,1.9511]
[1746799542000,1.16767865,171.28,171.13,13.6382]
[1746799542202,20.51897385,171.31,171.13,13.6382]
[1746799542702,20.51897385,171.31,171.14,11.6868]
[1746799543097,705.88521784,171.32,171.14,11.6868]
[1746799543098,624.47142739,171.32,171.14,11.6868]
[1746799543294,5.8399,171.25,171.2,5.8411]
[1746799543498,27.79769652,171.29,171.16,38.72]
[1746799543701,27.79769652,171.25,171.16,38.72]
[1746799543998,39.0,171.24,171.15,5.843]
[1746799544500,5.8417,171.2,171.15,5.843]
[1746799545005,5.8417,171.2,171.16,5.8427]
[1746799545205,39.0,171.24,171.13,1.9511]
[1746799545602,44.84,171.24,171.2,5.8411]
[1746799545803,39.0,171.24,171.13,1.9511]
[1746799546008,81.41379045,171.28,171.13,1.9511]
[1746799547102,81.41379045,171.28,171.15,11.6862]
[1746799547306,81.41379045,171.28,171.16,38.84]
[1746799547509,81.41379045,171.28,171.17,38.72]
[1746799547705,38.72,171.31,171.17,38.72]
[1746799547905,5.8385,171.29,171.17,38.72]
[1746799548101,5.8385,171.29,171.25,5.8395]
[1746799548310,81.41379045,171.33,171.26,38.72]
[1746799548508,81.41379045,171.33,171.26,42.5262]
[1746799549405,20.6136007,171.38,171.26,42.5262]
[1746799550312,5.8364,171.35,171.3,5.8378]
[1746799550608,20.6136007,171.38,171.26,42.5262]
[1746799550909,26.4489007,171.38,171.34,5.8365]
[1746799551108,20.6136007,171.38,171.26,42.5262]
[1746799551407,5.8359,171.37,171.26,42.5262]
[1746799551607,77.28,171.36,171.21,1.9221]
[1746799551799,27.79769652,171.33,171.21,1.9221]
[1746799552003,5.8383,171.3,171.25,5.8396]
[1746799552198,66.39769652,171.29,171.17,38.66]
[1746799552403,66.39769652,171.29,171.2,5.8414]
[1746799552404,5.8396,171.26,171.2,5.8414]
[1746799552709,5.8396,171.26,171.17,40.4953]
[1746799552911,5.8393,171.27,171.21,5.8407]
[1746799553112,27.79769652,171.34,171.17,40.4953]
[1746799553609,27.79769652,171.3,171.17,40.4953]
[1746799554008,27.79769652,171.3,171.24,5.84]
[1746799554208,27.79769652,171.3,171.17,40.4953]
[1746799554407,81.41379045,171.32,171.17,40.4953]
[1746799555614,81.41379045,171.34,171.17,40.4953]
[1746799556103,81.41379045,171.34,171.17,68.29299652]
[1746799556508,5.837,171.33,171.17,68.29299652]
[1746799557013,5.8377,171.31,171.26,5.8391]
[1746799557508,5.8379,171.31,171.26,5.8391]
[1746799557811,5.8379,171.31,171.24,38.66]
[1746799557812,5.8379,171.31,171.27,5.839]
[1746799559113,185.91148697,171.35,171.24,38.66]
[1746799559313,81.41379045,171.34,171.25,3.8294]
[1746799559515,81.41379045,171.34,171.31,5.8374]
[1746799559815,81.41379045,171.34,171.25,3.8294]
[1746799560009,87.25049045,171.34,171.3,5.8379]
[1746799560209,81.41379045,171.34,171.25,3.8294]
[1746799560604,5.8375,171.32,171.25,3.8294]
[1746799560810,81.41379045,171.34,171.24,38.66]
[1746799561216,5.8378,171.31,171.26,5.8391]
[1746799561409,27.79769652,171.35,171.24,38.66]
[1746799562517,38.64,171.34,171.24,38.66]
[1746799562812,5.839,171.27,171.24,38.66]
[1746799563014,27.79769652,171.31,171.19,37.8]
[1746799563414,27.79769652,171.31,171.18,42.4703]
[1746799563913,357.0,171.3,171.18,3.8303]
[1746799564417,27.83362389,171.27,171.14,38.64]
[1746799564613,76.46,171.26,171.14,38.64]
[1746799564919,5.8418,171.19,171.14,38.64]
[1746799565113,27.83362389,171.24,171.14,38.64]
[1746799565325,5.8422,171.18,171.14,44.4834]
[1746799565525,27.83362389,171.24,171.09,44.4474]
[1746799566118,357.0,171.23,171.06,1.0]
[1746799566422,33.67512389,171.2,171.14,5.8431]
[1746799566622,37.7,171.19,171.06,1.0]
[1746799567022,5.8423,171.18,171.06,1.0]
[1746799567223,37.7,171.19,171.06,1.0]
[1746799567623,5.8424,171.18,171.13,5.8437]
[1746799567823,5.8424,171.18,171.06,1.0]
[1746799568023,37.7,171.19,171.06,1.0]
[1746799568722,27.83362389,171.2,171.06,12.6921]
[1746799568917,27.83362389,171.2,171.18,5.8417]
[1746799569220,27.83362389,171.2,171.11,38.66]
[1746799570828,27.83362389,171.24,171.11,38.66]
[1746799571021,43.2406,171.23,171.19,5.8417]
[1746799571223,37.4,171.23,171.13,37.38]
[1746799571421,390.67272389,171.27,171.13,37.38]
[1746799571623,27.83362389,171.27,171.13,37.38]
[1746799572015,27.84626319,171.27,171.12,5.7021]
[1746799572426,27.84626319,171.23,171.12,41.1628]
[1746799572626,74.7,171.22,171.12,41.1628]
[1746799572823,74.68,171.26,171.12,41.1628]
[1746799573024,5.8398,171.25,171.12,41.1628]
[1746799573224,357.0,171.31,171.12,41.1628]
[1746799573429,27.84626319,171.29,171.12,41.1628]
[1746799573826,27.84626319,171.29,171.13,11.6875]
[1746799574128,357.0,171.31,171.14,27.84626319]
[1746799574327,592.33365434,171.34,171.15,1.9909]
[1746799574527,592.33365434,171.34,171.17,11.6846]
[1746799574724,592.33365434,171.34,171.18,37.18]
[1746799575126,490.30626319,171.34,171.19,11.6834]
[1746799575325,27.84626319,171.34,171.18,37.18]
[1746799575623,27.84626319,171.34,171.2,11.6828]
[1746799575830,27.83990055,171.29,171.13,74.48]
[1746799576026,102.31990055,171.29,171.13,74.48]
[1746799576232,27.8535069,171.25,171.13,74.48]
[1746799576531,27.85536566,171.25,171.13,37.4]
[1746799576731,27.85536566,171.25,171.16,5.8427]
[1746799576922,27.85536566,171.25,171.13,37.4]
[1746799577827,27.86609932,171.21,171.12,3.8628]
[1746799578028,27.86855752,171.2,171.08,537.14]
[1746799578328,70.80904446,171.21,171.15,5.843]
[1746799578527,64.96774446,171.21,171.08,537.1]
[1746799578930,37.1,171.21,171.08,37.06]
[1746799579531,37.4,171.22,171.09,37.4]
[1746799579835,36.94,171.25,171.09,37.4]
[1746799580736,36.94,171.25,171.09,65.26774446]
[1746799581128,27.86774446,171.27,171.09,65.26774446]
[1746799581431,27.85358282,171.2,171.06,1.0]